fUST/lending_fUST_20260210
["ID","MTS","AMOUNT","RATE_DAILY","PERIOD"]
[404919828,1770682055016,-151.0,0.00038356,120]
[404919829,1770682055037,-151.0,0.00038356,120]
[404919830,1770682055058,-151.0,0.00038356,120]
[404919831,1770682055079,-151.0,0.00038356,120]
[404919832,1770682055100,-233.0867,0.00038356,120]
[404919833,1770682055121,-151.0,0.00038356,120]
[404919834,1770682055141,-151.0,0.00038356,120]
[404919835,1770682055161,-214.040956,0.00038356,120]
[404919836,1770682055181,-223.994972,0.00038356,120]
[404919837,1770682055202,-223.994972,0.00038356,120]
[404919838,1770682055221,-223.994972,0.00038356,120]
[404919839,1770682055240,-223.994972,0.00038356,120]
[404919840,1770682055258,-223.994972,0.00038356,120]
[404919841,1770682055277,-223.994972,0.00038356,120]
[404919842,1770682055296,-223.994972,0.00038356,120]
[404919843,1770682055316,-223.994972,0.00038356,120]
[404919844,1770682055338,-223.994972,0.00038356,120]
[404919845,1770682055359,-223.994972,0.00038356,120]
[404919846,1770682055378,-252.601608,0.00038356,120]
[404919847,1770682055403,-223.994972,0.00038356,120]
[404919848,1770682055423,-223.994972,0.00038356,120]
[404919849,1770682055442,-223.994972,0.00038356,120]
[404919850,1770682055462,-223.994972,0.00038356,120]
[404919851,1770682055481,-223.994972,0.00038356,120]
[404919852,1770682055500,-223.994972,0.00038356,120]
[404919853,1770682055520,-223.994972,0.00038356,120]
[404919854,1770682055540,-223.994972,0.00038356,120]
[404919855,1770682055560,-223.994972,0.00038356,120]
[404919856,1770682055580,-223.994969,0.00038356,120]
[404919857,1770682055600,-151.0,0.00038356,120]
[404919858,1770682055623,-151.0,0.00038356,120]
[404919859,1770682055722,-151.0,0.00038356,120]
[404919860,1770682055744,-168.0,0.00038468,2]
[404919861,1770682055764,-1000.0,0.000385,15]
[404919862,1770682055784,-360.0,0.00038512,48]
[404919863,1770682055804,-1000.0,0.000388,15]
[404919864,1770682055824,-151.0,0.000388,16]
[404919865,1770682055843,-1000.0,0.000391,15]
[404919866,1770682055862,-1000.0,0.000394,15]
[404919867,1770682055881,-1617.10890212,0.000394,3]
[404919868,1770682055901,-151.0,0.000394,11]
[404919869,1770682055921,-3719.38317814,0.000396,2]
[404919870,1770682055940,-6285.68702561,0.000396,2]
[404919877,1770682210423,-267.28360628,0.00044084,120]
[404919878,1770682210510,-8747.30380131,0.00044084,120]
[404919879,1770682210678,-8747.30380131,0.00044084,120]
[404919880,1770682210761,-8747.30380131,0.00044084,120]
[404919881,1770682210844,-8747.30380131,0.00044084,120]
[404919882,1770682210929,-8747.30380131,0.00044084,120]
[404919883,1770682211018,-8747.30380131,0.00044084,120]
[404919884,1770682211099,-8747.30380131,0.00044084,120]
[404919885,1770682211186,-8747.30380131,0.00044084,120]
[404919886,1770682211268,-8747.30380131,0.00044084,120]
[404919887,1770682211355,-8747.30380131,0.00044084,120]
[404919888,1770682211442,-8747.30380131,0.00044084,120]
[404919889,1770682211526,-8747.30380131,0.00044084,120]
[404919890,1770682211612,-8747.30380131,0.00044084,120]
[404919891,1770682211688,-8747.30380131,0.00044084,120]
[404919892,1770682211764,-8747.30380131,0.00044084,120]
[404919894,1770682211848,-8747.30380131,0.00044084,120]
[404919895,1770682211929,-8747.30380131,0.00044084,120]
[404919896,1770682212014,-8747.30380131,0.00044084,120]
[404919897,1770682212096,-8747.30380131,0.00044084,120]
[404919898,1770682212182,-8747.30380131,0.00044084,120]
[404919899,1770682212270,-8747.30380131,0.00044084,120]
[404919900,1770682212350,-8747.30380131,0.00044084,120]
[404919901,1770682212433,-8747.30380131,0.00044084,120]
[404919902,1770682212517,-8747.30380131,0.00044084,120]
[404919903,1770682212599,-8747.30380131,0.00044084,120]
[404919904,1770682212679,-8747.30380131,0.00044084,120]
[404919905,1770682212756,-8747.30380131,0.00044084,120]
[404919906,1770682212834,-8747.30380131,0.00044084,120]
[404919907,1770682212915,-8747.30380131,0.00044084,120]
[404919908,1770682213003,-8747.30380131,0.00044084,120]
[404919909,1770682213086,-8747.30380131,0.00044084,120]
[404919910,1770682213169,-8747.30380131,0.00044084,120]
[404919911,1770682213250,-8747.30380131,0.00044084,120]
[404919912,1770682213336,-8747.30380131,0.00044084,120]
[404919913,1770682213420,-8747.30380131,0.00044084,120]
[404919914,1770682213501,-8747.30380131,0.00044084,120]
[404919915,1770682213583,-8747.30380131,0.00044084,120]
[404919916,1770682213666,-8747.30380131,0.00044084,120]
[404919917,1770682213745,-8747.30380131,0.00044084,120]
[404919918,1770682213825,-8747.30380131,0.00044084,120]
[404919919,1770682213909,-8747.30380131,0.00044084,120]
[404919920,1770682213991,-8747.30380131,0.00044084,120]
[404919921,1770682214072,-8747.30380131,0.00044084,120]
[404919922,1770682214151,-8747.30380131,0.00044084,120]
[404919923,1770682214233,-8747.30380131,0.00044084,120]
[404919924,1770682214315,-8747.30380131,0.00044084,120]
[404919925,1770682214397,-8747.30380131,0.00044084,120]
[404919926,1770682214481,-8747.30380131,0.00044084,120]
[404919927,1770682214566,-8747.30380131,0.00044084,120]
[404919928,1770682214646,-564.92304711,0.00044084,120]
[404919929,1770682214726,-564.92304711,0.00044084,120]
[404919930,1770682214801,-564.92304711,0.00044084,120]
[404919931,1770682214882,-564.92304711,0.00044084,120]
[404919932,1770682214967,-564.92304711,0.00044084,120]
[404919933,1770682215059,-564.92304711,0.00044084,120]
[404919934,1770682215139,-564.92304711,0.00044084,120]
[404919935,1770682215218,-564.92304711,0.00044084,120]
[404919936,1770682215296,-564.92304711,0.00044084,120]
[404919937,1770682215373,-564.92304711,0.00044084,120]
[404919938,1770682215451,-564.92304711,0.00044084,120]
[404919939,1770682215535,-564.92304711,0.00044084,120]
[404919940,1770682215614,-564.92304711,0.00044084,120]
[404919941,1770682215692,-564.92304711,0.00044084,120]
[404919942,1770682215770,-564.92304711,0.00044084,120]
[404919943,1770682215847,-564.92304711,0.00044084,120]
[404919944,1770682215925,-564.92304711,0.00044084,120]
[404919945,1770682216008,-564.92304711,0.00044084,120]
[404919946,1770682216102,-564.92304711,0.00044084,120]
[404919947,1770682216183,-564.92304711,0.00044084,120]
[404919948,1770682216265,-564.92304711,0.00044084,120]
[404919949,1770682216354,-564.92304711,0.00044084,120]
[404919950,1770682216449,-564.92304711,0.00044084,120]
[404919951,1770682216651,-564.92304711,0.00044084,120]
[404919952,1770682216737,-564.92304711,0.00044084,120]
[404919953,1770682216814,-564.92304711,0.00044084,120]
[404919954,1770682216896,-564.92304711,0.00044084,120]
[404919955,1770682216980,-564.92304711,0.00044084,120]
[404919956,1770682217063,-564.92304711,0.00044084,120]
[404919957,1770682217146,-564.92304711,0.00044084,120]
[404919958,1770682217227,-4685.0,0.00044084,120]
[404919959,1770682217307,-3154.0,0.00044084,120]
[404919960,1770682217388,-16956.96554208,0.00044084,120]
[404919961,1770682217466,-39943.88021972,0.00044084,120]
[404919962,1770682217542,-33664.95284663,0.00044084,120]
[404919963,1770682217620,-173.02175959,0.00044084,120]
[404919964,1770682217693,-2575.87924799,0.00044084,120]
[404919965,1770682217769,-495.0,0.00044084,120]
[404919966,1770682217845,-1246689.64420587,0.00044084,120]
[404919967,1770682217926,-914.27704467,0.00044084,120]
[404919968,1770682218004,-475.14112654,0.00044084,120]
[404919969,1770682218081,-151.0,0.00044084,120]
[404919970,1770682218159,-151.0,0.00044084,120]
[404919971,1770682218234,-151.0,0.00044084,120]
[404919972,1770682218315,-151.0,0.00044084,120]
[404919973,1770682218398,-151.0,0.00044084,120]
[404919974,1770682218480,-151.0,0.00044084,120]
[404919975,1770682218562,-301.043509,0.00044084,120]
[404919976,1770682218642,-151.0,0.00044084,120]
[404919977,1770682218721,-151.0,0.00044084,120]
[404919978,1770682218799,-151.0,0.00044084,120]
[404919979,1770682218880,-151.0,0.00044084,120]
[404919980,1770682218964,-184.24657,0.00044084,120]
[404919981,1770682231871,-151.0,0.00038356,120]
[404919982,1770682231959,-151.0,0.00038356,120]
[404919983,1770682232046,-151.0,0.00038356,120]
[404919985,1770682232136,-151.0,0.00038356,120]
[404919989,1770682232219,-151.0,0.00038356,120]
[404919997,1770682232305,-151.0,0.00038356,120]
[404920005,1770682232389,-151.0,0.00038356,120]
[404920007,1770682232471,-151.0,0.00038356,120]
[404920008,1770682232556,-151.0,0.00038356,120]
[404920009,1770682232640,-151.0,0.00038356,120]
[404920010,1770682232721,-175.323618,0.00038356,120]
[404920011,1770682232805,-153263.74521175,0.0004,120]
[404920012,1770682232896,-1203741.97165322,0.0004,120]
[404920013,1770682232978,-526563.80843955,0.0004,120]
[404920014,1770682233062,-28212.67265214,0.0004,120]
[404920015,1770682233143,-172.98,0.0004,120]
[404920016,1770682233223,-366.0,0.00040289,120]
[404920017,1770682233310,-363.10431927,0.00041095,120]
[404920018,1770682233393,-569.21,0.00041096,120]
[404920019,1770682233476,-50000.0,0.00041096,120]
[404920020,1770682233558,-552.02,0.00041096,120]
[404920021,1770682233643,-893.47,0.00041096,120]
[404920022,1770682233722,-871.87,0.00041096,120]
[404920023,1770682233803,-893.47,0.00041689,120]
[404920024,1770682233884,-328.19259471,0.00042,120]
[404920025,1770682233967,-893.47,0.00042282,120]
[404920026,1770682234047,-393.0,0.00042289,120]
[404920027,1770682234127,-893.47,0.00042875,120]
[404920028,1770682234206,-893.47,0.00043469,120]
[404920029,1770682234286,-18051.71,0.000438,120]
[404920030,1770682234370,-2000.0,0.00044,120]
[404920031,1770682234449,-893.47,0.00044062,120]
[404920032,1770682234531,-6250.0,0.00044082,120]
[404920033,1770682234620,-491.46,0.00044084,120]
[404920034,1770682234706,-487.55,0.00044084,120]
[404920035,1770682234793,-420.0,0.00044289,120]
[404920036,1770682234883,-893.47,0.00044655,120]
[404920037,1770682234973,-966.26448897,0.000449,120]
[404920038,1770682235059,-470.96652693,0.00045,120]
[404920039,1770682235150,-599.82425668,0.00045,120]
[404920040,1770682235239,-487.55,0.00045193,120]
[404920041,1770682235325,-893.47,0.00045248,120]
[404920042,1770682235410,-233.08,0.0004544,120]
[404920043,1770682235495,-893.47,0.00045841,120]
[404920044,1770682235578,-447.0,0.00046289,120]
[404920045,1770682235659,-487.55,0.00046303,120]
[404920046,1770682235743,-893.47,0.00046434,120]
[404920047,1770682235825,-893.47,0.00047027,120]
[404920048,1770682235910,-487.55,0.00047412,120]
[404920049,1770682235996,-893.47,0.00047621,120]
[404920050,1770682236079,-510.53633331,0.00048,120]
[404920051,1770682236162,-152.13290659,0.00048,120]
[404920052,1770682236249,-893.47,0.00048214,120]
[404920053,1770682236339,-487.55,0.00048521,120]
[404920054,1770682236425,-893.47,0.00048807,120]
[404920055,1770682236509,-151.0,0.00049315,120]
[404920056,1770682236592,-864.0,0.00049354,120]
[404920057,1770682236672,-893.47,0.000494,120]
[404920058,1770682236757,-487.55,0.00049631,120]
[404920059,1770682236842,-893.47,0.00049993,120]
[404920060,1770682236926,-3905.5,0.0005,120]
[404920061,1770682237009,-182.0,0.0005,120]
[404920062,1770682237087,-3659.37691531,0.0005,120]
[404920063,1770682237163,-5006.25195448,0.0005,120]
[404920064,1770682237240,-311485.07737304,0.0005,120]
[404920065,1770682237318,-4316.50644202,0.0005,120]
[404920066,1770682237398,-210.04,0.000502,120]
[404920067,1770682237483,-893.47,0.00050586,120]
[404920068,1770682237570,-499.99999999,0.00050696,120]
[404920069,1770682237661,-487.55,0.0005074,120]
[404920070,1770682237739,-500.0,0.00050751,120]
[404920071,1770682237819,-500.0,0.00050847,120]
[404920072,1770682237899,-500.0,0.00050907,120]
[404920073,1770682237987,-500.0,0.00050969,120]
[404920075,1770682238073,-893.47,0.0005118,120]
[404920076,1770682238157,-500.0,0.00051189,120]
[404920078,1770682238328,-500.0,0.00051229,120]
[404920079,1770682238407,-891.11354073,0.00051643,120]
[404920080,1770682238488,-600.0,0.00051654,120]
[404920081,1770682238570,-893.47,0.00051773,120]
[404920082,1770682238659,-487.55,0.0005185,120]
[404920083,1770682238740,-535.0,0.00052043,120]
[404920084,1770682238822,-766.0,0.00052043,120]
[404920085,1770682238904,-600.0,0.00052182,120]
[404920086,1770682238994,-893.47,0.00052366,120]
[404920087,1770682239074,-2000.0,0.000524,120]
[404920088,1770682239154,-790837.60491038,0.000529,120]
[404920089,1770682239234,-168.03,0.000529,120]
[404920090,1770682239316,-884.45,0.00052959,120]
[404920091,1770682239402,-486.56,0.00052959,120]
[404920092,1770682239486,-482.63,0.00052959,120]
[404920093,1770682239566,-1000.0,0.0005429,120]
[404920094,1770682239644,-526.08,0.00054794,120]
[404920095,1770682239718,-555.69,0.00054794,120]
[404920096,1770682239797,-517.57408613,0.00054794,120]
[404920097,1770682239874,-528.25854457,0.00054794,120]
[404920098,1770682239958,-503.58612392,0.00054794,120]
[404920099,1770682240042,-581.40055749,0.00054794,120]
[404920100,1770682240123,-498.47088923,0.00054794,120]
[404920101,1770682240208,-515.65217405,0.00054794,120]
[404920102,1770682240292,-609.9800125,0.00054794,120]
[404920103,1770682240374,-587.80603011,0.00054794,120]
[404920104,1770682240452,-500.0,0.00054794,120]
[404920105,1770682240532,-500.0,0.00054794,120]
[404920108,1770682240626,-514.80923765,0.00054794,120]
[404920109,1770682240705,-500.0,0.00054794,120]
[404920110,1770682240786,-500.0,0.00054794,120]
[404920117,1770682240870,-570.32238024,0.00054794,120]
[404920119,1770682240953,-500.0,0.00054794,120]
[404920120,1770682241039,-511.42901529,0.00054794,120]
[404920121,1770682241118,-515.32820392,0.00054794,120]
[404920122,1770682241196,-520.15518354,0.00054794,120]
[404920123,1770682241275,-537.6308808,0.00054794,120]
[404920124,1770682241355,-545.21658131,0.00054794,120]
[404920125,1770682241435,-2012.9,0.00054794,120]
[404920126,1770682241517,-462.60317284,0.00054794,120]
[404920127,1770682241598,-259.58122309,0.00054794,120]
[404920128,1770682241679,-500.0,0.00054794,120]
[404920129,1770682241759,-500.0,0.00054794,120]
[404920130,1770682241842,-600.0,0.00054794,120]
[404920131,1770682241927,-500.0,0.00054794,120]
[404920132,1770682242011,-1369.62,0.00054794,120]
[404920133,1770682242092,-500.0,0.00054794,120]
[404920134,1770682242173,-270.51614372,0.00054794,120]
[404920135,1770682242264,-519.57890422,0.00054794,120]
[404920136,1770682242351,-500.0,0.00054794,120]
[404920137,1770682242443,-500.0,0.00054794,120]
[404920138,1770682242526,-2524.24,0.00054794,120]
[404920139,1770682242603,-251.52640192,0.00054794,120]
[404920141,1770682242684,-922.62,0.00054794,120]
[404920142,1770682242762,-8621.14,0.00054794,120]
[404920143,1770682242842,-153.24451864,0.00054794,120]
[404920144,1770682242924,-519.14998941,0.00054794,120]
[404920145,1770682243008,-182.0,0.00059,120]
[404920148,1770682243096,-1000.0,0.00059719,120]
[404920149,1770682243181,-244.0,0.00059719,120]
[404920150,1770682243307,-2366.44180023,0.00031849,2]
[404920151,1770682243317,-639.28962397,0.00032776,6]
[404920152,1770682243327,-500.0,0.00032876,10]
[404920153,1770682243336,-399.25,0.00035,14]
[404920154,1770682243346,-399.25,0.000386,14]
[404920155,1770682243355,-341.98291557,0.00038839,2]
[404920156,1770682243365,-2000.0,0.00039125,2]
[404920157,1770682243377,-7101.83146793,0.000396,2]
[404920158,1770682243387,-2074.0,0.00039673,2]
[404920159,1770682243397,-1000.0,0.000397,15]
[404920160,1770682243406,-712.0,0.00039742,11]
[404920161,1770682243417,-2949.15728212,0.0003989,2]
[404920162,1770682243427,-8683.3261139,0.000399,30]
[404920163,1770682243438,-250.0,0.000399,10]
[404920164,1770682243448,-13877.65854548,0.0003999,2]
[404920165,1770682243458,-740.80026107,0.0003999,3]
[404920166,1770682243467,-15717.0461064,0.0003999,3]
[404920167,1770682243477,-1355.51749619,0.0003999,3]
[404920168,1770682243486,-1435.57,0.0003999,10]
[404920169,1770682243496,-210.05838591,0.0004,2]
[404920170,1770682243507,-1000.0,0.0004,30]
[404920171,1770682243516,-373.296997,0.0004,10]
[404920172,1770682243526,-1307.22,0.0004,2]
[404920173,1770682243535,-4206.95764753,0.00040077,100]
[404920174,1770682243546,-872.49793686,0.00040221,2]
[404920175,1770682243556,-1000.0,0.000403,30]
[404920176,1770682243566,-1000.0,0.000406,30]
[404920177,1770682243576,-600.0,0.00040789,60]
[404920178,1770682243586,-1000.0,0.000409,30]
[404920179,1770682243597,-250.0,0.000411,14]
[404920180,1770682243606,-250.0,0.000411,14]
[404920181,1770682243616,-250.0,0.000411,14]
[404920182,1770682243626,-250.0,0.000411,14]
[404920183,1770682243635,-250.0,0.000411,14]
[404920184,1770682243644,-250.0,0.000411,14]
[404920185,1770682243654,-222.3,0.000411,14]
[404920186,1770682243664,-1000.0,0.000412,30]
[404920187,1770682243673,-1000.0,0.000415,30]
[404920188,1770682243683,-399.25,0.00042,14]
[404920189,1770682243693,-1393.28,0.000422,90]
[404920190,1770682243703,-444.16,0.000422,90]
[404920191,1770682243712,-1393.28,0.000428,90]
[404920192,1770682243722,-563.0,0.000428,30]
[404920193,1770682243732,-52925.55878685,0.00042978,7]
[404920194,1770682243743,-250.0,0.00043,30]
[404920195,1770682243753,-250.0,0.00043,30]
[404920196,1770682243762,-741.97989042,0.00043,7]
[404920197,1770682243772,-2441.5901,0.0004322,7]
[404920198,1770682243784,-467.06004958,0.000438,30]
[404920199,1770682243794,-205.25,0.000439,2]
[404920200,1770682243804,-1307.22,0.000439,2]
[404920201,1770682243814,-52925.55878685,0.00044048,7]
[404920202,1770682243823,-282.79180251,0.00044057,2]
[404920203,1770682243833,-379.8252637,0.0004407,30]
[404920204,1770682243842,-379.8252637,0.0004407,30]
[404920205,1770682243852,-371.1100122,0.0004407,30]
[404920206,1770682243861,-605.6861769,0.00044084,30]
[404920207,1770682243871,-182.6298234,0.00044084,30]
[404920208,1770682243880,-150.0,0.00044084,2]
[404920209,1770682243890,-92344.0426271,0.00044084,2]
[404920210,1770682243900,-300.0,0.00044084,2]
[404920211,1770682243910,-649155.55027852,0.00044084,3]
[404920216,1770682244725,267.0,0.00053363,120]
[404920217,1770682244811,383.0,0.00053363,120]
[404920218,1770682244838,-282.11293783,0.00044084,3]
[404920219,1770682244926,574.0,0.00054794,120]
[404920220,1770682245014,401.0,0.00054794,120]
[404920221,1770682245107,478.0,0.00054794,120]
[404920222,1770682245199,401.0,0.00054794,120]
[404920223,1770682245303,335.0,0.00054794,120]
[404920224,1770682245395,401.0,0.00059719,120]
[404920225,1770682245508,455.0,0.00059719,120]
[404920228,1770682246184,-1196.3,0.00042968,10]
[404920229,1770682246194,-585.34477671,0.00044084,3]
[404920231,1770682247721,-185.754853,0.00036235,60]
[404920232,1770682247731,-15490.55247905,0.00044084,3]
[404920233,1770682247751,-377.1655679,0.00044084,3]
[404920235,1770682287049,303.10001596,0.000189,2]
[404920252,1770682442815,500.0,0.00013273,2]
[404920253,1770682443714,396.90119587,0.00013273,2]
[404920261,1770682510752,500.0,0.00013699,2]
[404920262,1770682513167,500.90548219,0.00013699,2]
[404920263,1770682513801,500.78529919,0.00013699,2]
[404920264,1770682515179,336.60853574,0.00013273,2]
[404920265,1770682516198,578.88185038,0.00013699,2]
[404920266,1770682520705,500.0,0.00013273,2]
[404920267,1770682520754,1000.0,0.00013821,2]
[404920268,1770682520793,1500.0,0.00014368,2]
[404920269,1770682520856,2000.0,0.00014916,2]
[404920270,1770682520911,364.24249807,0.00015464,2]
[404920271,1770682521219,500.93754052,0.00013273,2]
[404920272,1770682521248,500.0,0.00013699,2]
[404920273,1770682521305,503.26043127,0.00014247,2]
[404920274,1770682521438,500.0,0.00013273,2]
[404920275,1770682521499,1000.0,0.00013821,2]
[404920276,1770682521547,1500.0,0.00014368,2]
[404920277,1770682521685,2000.0,0.00014916,2]
[404920278,1770682524191,500.0,0.00013699,2]
[404920279,1770682524251,1000.0,0.00014247,2]
[404920280,1770682524306,502.49662358,0.00014795,2]
[404920281,1770682524352,500.0,0.00013699,2]
[404920282,1770682524406,1000.0,0.00014247,2]
[404920283,1770682524466,1500.0,0.00014795,2]
[404920284,1770682525764,482.46412445,0.00013273,2]
[404920285,1770682526664,500.55644104,0.00013273,2]
[404920286,1770682526690,545.20176492,0.00013699,2]
[404920287,1770682526748,500.58253669,0.00013273,2]
[404920288,1770682526899,500.0,0.00013273,2]
[404920289,1770682526955,503.08102239,0.00013699,2]
[404920290,1770682527686,160.18139807,0.00013699,2]
[404920291,1770682527905,501.21055458,0.00013699,2]
[404920292,1770682528010,503.29938304,0.00014247,2]
[404920293,1770682528052,500.0,0.00013699,2]
[404920294,1770682528671,500.0,0.00013273,2]
[404920295,1770682529383,500.0,0.00013273,2]
[404920296,1770682530060,526.13440827,0.00013699,2]
[404920297,1770682530185,500.68304287,0.00013699,2]
[404920298,1770682530382,500.0,0.00013699,2]
[404920299,1770682530434,1000.0,0.00014247,2]
[404920300,1770682530491,501.07051364,0.00014795,2]
[404920301,1770682532547,160.62244729,0.00013273,2]
[404920302,1770682532764,501.47890403,0.00013699,2]
[404920303,1770682536636,166.94843999,0.00013699,2]
[404920304,1770682536755,300.0,0.00013673,2]
[404920305,1770682536812,600.0,0.00014221,2]
[404920306,1770682536860,500.0,0.00013273,2]
[404920307,1770682536887,814.96811641,0.00014768,2]
[404920318,1770682594934,502.01811955,0.00013699,2]
[404920319,1770682596092,500.0,0.00013699,2]
[404920320,1770682596120,238.46971449,0.00014247,2]
[404920323,1770682625757,500.0,0.00013699,2]
[404920324,1770682625799,1000.0,0.00014247,2]
[404920325,1770682625850,1202.32715655,0.00014795,2]
[404920326,1770682630733,500.0,0.00013699,2]
[404920327,1770682630760,1000.0,0.00014247,2]
[404920328,1770682630820,825.6354297,0.00014795,2]
[404920329,1770682637706,161.15353052,0.00013699,2]
[404920330,1770682639053,411.14838567,0.00013699,2]
[404920333,1770682651160,500.0,0.00013699,2]
[404920334,1770682651210,1500.0,0.00014795,2]
[404920335,1770682651706,500.0,0.00013273,2]
[404920336,1770682651763,1000.0,0.00013821,2]
[404920337,1770682651810,760.32577234,0.00014368,2]
[404920338,1770682652404,500.0,0.00013273,2]
[404920339,1770682652474,1000.0,0.00013821,2]
[404920340,1770682652513,1500.0,0.00014368,2]
[404920341,1770682652570,2000.0,0.00014916,2]
[404920342,1770682652790,1000.0,0.00014247,2]
[404920447,1770682810614,500.0,0.00013699,2]
[404920448,1770682810674,1000.0,0.00014247,2]
[404920449,1770682810721,1500.0,0.00014795,2]
[404920450,1770682810776,2000.0,0.00015342,2]
[404920451,1770682810829,792.52981682,0.0001589,2]
[404920452,1770682813091,500.0,0.00013699,2]
[404920453,1770682813153,500.51974168,0.00014247,2]
[404920454,1770682813830,500.0,0.00013699,2]
[404920455,1770682813884,1002.78626778,0.00014247,2]
[404920457,1770682817117,500.0,0.00013273,2]
[404920458,1770682817146,1500.0,0.00014368,2]
[404920459,1770682817173,1000.0,0.00013821,2]
[404920460,1770682817222,2000.0,0.00014916,2]
[404920461,1770682817278,918.55711365,0.00015464,2]
[404920462,1770682830430,500.0,0.00013273,2]
[404920463,1770682830480,1000.0,0.00013821,2]
[404920464,1770682830537,1500.0,0.00014368,2]
[404920465,1770682830596,2063.58171927,0.00014916,2]
[404920466,1770682831562,500.0,0.00013699,2]
[404920467,1770682831610,1000.0,0.00014247,2]
[404920468,1770682831639,1500.0,0.00014795,2]
[404920469,1770682831667,1000.0,0.0001589,2]
[404920470,1770682831712,2000.0,0.00015342,2]
[404920471,1770682867376,500.0,0.00013699,2]
[404920472,1770682867420,501.3003251,0.00014247,2]
[404920473,1770682886617,500.0,0.00013699,2]
[404920474,1770682886674,1000.5791948,0.00014247,2]
[404920475,1770682887007,401.80036413,0.00013273,2]
[404920476,1770682888272,500.0,0.00013273,2]
[404920477,1770682888331,1006.9962195,0.00014368,2]
[404920478,1770682888389,1000.0,0.00013821,2]
[404920479,1770682891632,200.0,0.00013699,2]
[404920480,1770682897978,500.0,0.00013699,2]
[404920481,1770682898033,530.16327373,0.00014247,2]
[404920482,1770682902088,500.0,0.00013699,2]
[404920483,1770682902134,503.55924812,0.00014247,2]
[404920484,1770682902481,500.0,0.00013699,2]
[404920485,1770682902531,536.69780885,0.00014247,2]
[404920486,1770682908664,501.69807982,0.00013699,2]
[404920487,1770682937786,500.0,0.00013699,2]
[404920488,1770682937839,1500.0,0.00014795,2]
[404920489,1770682937892,1000.0,0.00014247,2]
[404920492,1770683048602,217.40865874,0.00013273,2]
[404920493,1770683107930,629.69540114,0.00013699,2]
[404920494,1770683108009,500.0,0.00013699,2]
[404920495,1770683108110,1000.0,0.00014247,2]
[404920496,1770683108141,1500.0,0.00014795,2]
[404920497,1770683109712,500.0,0.00013699,2]
[404920498,1770683109744,616.19990478,0.00014795,2]
[404920499,1770683109807,1000.0,0.00014247,2]
[404920500,1770683109976,282.51127227,0.00013699,2]
[404920501,1770683111821,500.0,0.00013699,2]
[404920502,1770683111880,413.21960917,0.00014247,2]
[404920503,1770683113692,500.0,0.00013273,2]
[404920504,1770683113759,1007.09333172,0.00013821,2]
[404920505,1770683116627,500.0,0.00013273,2]
[404920506,1770683127563,500.0,0.00013699,2]
[404920507,1770683127593,1566.59202503,0.00014795,2]
[404920508,1770683127636,1000.0,0.00014247,2]
[404920514,1770683181386,500.0,0.00013699,2]
[404920515,1770683181422,1000.0,0.00014247,2]
[404920516,1770683181472,1646.5145419,0.00014795,2]
[404920517,1770683185003,491.16064446,0.00013273,2]
[404920518,1770683187620,150.0,0.00013699,2]
[404920519,1770683187682,250.0,0.00014247,2]
[404920520,1770683187735,228.93136157,0.00014795,2]
[404920522,1770683192160,1000.0,0.00013821,2]
[404920523,1770683192225,500.0,0.00013273,2]
[404920524,1770683192277,807.07897942,0.00014368,2]
[404920525,1770683203069,500.0,0.00013273,2]